Cogmind - Beta 16 @@@ ROGUE MODE // 2026.01.28 @ 01:17:28 Player: applejuice Result: Destroyed by G-67 Veteran with Plasma Rifle Performance ------------- Evolutions (6) 3000 Regions Visited (7) 1400 Robots Destroyed (163) 815 Value Destroyed (5977) 5977 Prototype IDs (4) 80 Alien Tech Used (0) 0 Bonus (229) 229 TOTAL SCORE: 11501 Bonus ------- High Alert Combat Kills 229 Cogmind --------- Core Integrity 0/1150 Matter 271/300 Energy 72/100 System Corruption 11% Temperature Cool (12) Movement Core (50) Location -4/Factory Parts ------- > --- POWER (2) -------- (None) > --- PROPULSION (3) --- (None) > --- UTILITY (11) ----- (None) > --- WEAPON (3) ------- (None) > --- INVENTORY (5) ---- Improved Fusion Compressor Advanced Signal Interpreter Wave Gun Peak State ------------ > --- POWER ------------ Neutrino Core > --- PROPULSION ------- Wheel Armored Huge Wheel > --- UTILITY ---------- Improved Heat Sink Improved Sensor Array Advanced Signal Interpreter Advanced Targeting Computer Matter Filter Improved Weapon Cycler Advanced Transmission Jammer Improved Heavy Armor Plating Hacking Suite Hacking Suite > --- WEAPON ----------- Gauss Rifle Railgun Hardcell Cannon > --- INVENTORY -------- Advanced Signal Interpreter Enhanced Gauss Cannon Hardcell Cannon Hardcell Cannon Heavy Missile Launcher [Rating: 82] Favorites ----------- Power Enhanced Nuclear Core Engine Light Ion Engine Power Core Enhanced Nuclear Core Propulsion Armored Huge Wheel Treads Light Treads Wheel Armored Huge Wheel Utility Hacking Suite Device Improved Sensor Array Storage High-capacity Storage Unit Processor Advanced Targeting Computer Hackware Hacking Suite Protection Improved Medium Armor Plating Weapon Gauss Rifle Energy Gun Small Laser Energy Cannon HERF Cannon Ballistic Gun Gauss Rifle Ballistic Cannon Magnetic Acceleration Cannon Launcher Heavy Missile Launcher Special Weapon Mining Laser Impact Weapon Great Maul Build | -11 -10 -9 -8 -7 -6 -5 -4 ------- Run | Yrd Mat Mat Mat Fac Fac Fac Fac Slots Evolved 12 | . . 2 2 2 2 2 2 Power 1 | . . . . . . . 1 Propulsion 1 | . . . . . . . 1 Utility 9 | . . 1 2 2 2 2 . Weapon 1 | . . 1 . . . . . Parts Attached 105 | 6 8 12 10 11 18 18 22 Power 16 | 1 1 1 1 3 3 2 4 Engine 6 | 1 1 1 . 1 . 1 1 Core 10 | . . . 1 2 3 1 3 Reactor . | . . . . . . . . Propulsion 16 | 2 . 5 1 . 1 2 5 Treads 2 | . . 2 . . . . . Leg . | . . . . . . . . Wheel 14 | 2 . 3 1 . 1 2 5 Hover . | . . . . . . . . Flight . | . . . . . . . . Utility 41 | 1 5 1 4 5 9 9 7 Device 13 | . 2 1 . 2 1 3 4 Storage 3 | 1 1 . . . . 1 . Processor 7 | . 1 . 2 . 2 1 1 Hackware 5 | . . . . . 3 1 1 Protection 13 | . 1 . 2 3 3 3 1 Artifact . | . . . . . . . . Weapon 32 | 2 2 5 4 3 5 5 6 Energy Gun 3 | 2 1 . . . . . . Energy Cannon 1 | . . . . . . . 1 Ballistic Gun 13 | . . 4 4 1 1 2 1 Ballistic Cannon 8 | . . . . . 3 2 3 Launcher 4 | . . 1 . 1 1 1 . Special Weapon 2 | . 1 . . . . . 1 Impact Weapon 1 | . . . . 1 . . . Slashing Weapon . | . . . . . . . . Piercing Weapon . | . . . . . . . . Special Melee Weapon . | . . . . . . . . Unidentified Prototypes 1 | . . . . . 1 . . Parts Lost 62 | . . 4 1 2 10 18 27 Power 10 | . . 1 . . 3 3 3 Propulsion 9 | . . 2 . . 1 1 5 Utility 25 | . . . . 2 4 7 12 Weapon 18 | . . 1 1 . 2 7 7 Highest Loss Streak 17 | . . 4 1 1 5 11 17 To Critical Strikes 1 | . . . . . . . 1 Average Backups 14 | . 6 18 17 15 17 15 4 Power 1 | . 1 1 2 2 1 1 . Propulsion 1 | . . 1 3 2 1 . . Utility 6 | . 1 8 6 6 7 6 1 Weapon 5 | . 3 7 5 3 6 6 3 Tool/Special . | . . . . . . . . Unused Backups 22 | . . 3 10 3 2 1 3 Power 2 | . . . . 2 . . . Propulsion 3 | . . . 2 1 . . . Utility 9 | . . 2 5 . . 1 1 Weapon 8 | . . 1 3 . 2 . 2 Tool/Special . | . . . . . . . . Average Slot Usage (%) 89 | . 97 94 93 91 92 85 75 Engine 2 | . 14 10 6 1 . . 1 Core 4 | . . . 2 5 5 4 4 Wheel 9 | . 28 17 12 7 6 4 8 Device 11 | . 8 10 11 15 10 7 18 Storage 6 | . 14 11 9 7 6 5 1 Processor 12 | . . 11 15 15 13 13 11 Hackware 10 | . . . . . 14 22 10 Protection 8 | . 2 . 8 14 13 4 3 Energy Gun 1 | . 26 . . . . . . Ballistic Gun 12 | . . 30 27 22 10 1 6 Ballistic Cannon 6 | . . . . . 8 14 6 Peak Build Rating 82 | 6 10 15 39 45 62 81 82 Average Rating 51 | 4 8 14 30 43 56 74 68 On Entrance 27 | . 6 9 15 38 45 62 45 Avg Prop Armor Cover (%) 9 | . . 9 . . . . . Naked Turns 11 | . . . . . . . 11 Heaviest Build 96 | 10 48 55 72 74 83 96 93 Greatest Support 40 | 20 20 40 28 28 28 28 38 Greatest Overweight (x) 20 | 3 2 18 3 2 2 20 4 Average Overweight (x) 2 | . . 2 2 2 2 2 1 Largest Inventory Capacity 20 | 8 20 20 20 20 20 20 20 Average Capacity 18 | 7 12 20 20 20 20 20 9 Most Carried 20 | 2 13 20 20 20 20 20 7 Average Carried 16 | . 6 18 19 18 18 18 4 Final Capacity 20 | 8 20 20 20 20 20 20 5 Final Carried 20 | 2 12 19 19 20 18 8 3 Class Distribution -------------------- 24% | Hacker-Skirmisher 21% | Hacker-Tank 20% | Tank 13% | Skirmisher 7% | Mutant 4% | Hacker-Mutant 3% | Hacker-Gunner Dominant Class ---------------- Mutant | -10/Materials Skirmisher | -9/Materials Skirmisher | -8/Materials Tank | -7/Factory Hacker-Tank | -6/Factory Hacker-Skirmisher | -5/Factory Hacker-Skirmisher | -4/Factory Resources | -11 -10 -9 -8 -7 -6 -5 -4 ----------- Run | Yrd Mat Mat Mat Fac Fac Fac Fac Matter Collected 5525 | 203 107 609 277 680 1242 1141 1266 Remotely 609 | . . . . . . 609 . Salvage Created 6274 | . 320 554 427 1261 1383 1292 1037 Parts 319 | . 14 40 31 77 61 49 47 Haulers Intercepted 4 | . 1 . 2 . 1 . . Recyclers Shooed 7 | . . 1 . . 3 1 2 Parts Field Recycled . | . . . . . . . . Retrieved Matter . | . . . . . . . . Parts Self-Destructed . | . . . . . . . . Prevented . | . . . . . . . . Parts Restored . | . . . . . . . . Kills | -11 -10 -9 -8 -7 -6 -5 -4 ------- Run | Yrd Mat Mat Mat Fac Fac Fac Fac Combat Hostiles Destroyed 98 | . 6 8 8 12 24 26 14 Guns 40 | . 6 6 8 8 6 2 4 Cannons 33 | . . . . . 10 13 10 AOE 25 | . . 2 . 4 8 11 . Classes Destroyed 16 | . 3 7 1 3 . 2 . Worker 13 | . . 1 . 6 2 2 2 Builder 19 | . . 4 . 1 1 8 5 Tunneler 2 | . . 1 . . . 1 . Hauler 4 | . 1 . 2 . 1 . . Recycler 10 | . . 1 . 4 2 1 2 Mechanic 1 | . . . . . . 1 . Operator 6 | . . 1 . 2 2 1 . Watcher 10 | . 1 2 . 2 1 3 1 Swarmer 11 | . . . 3 . 4 4 . Grunt 39 | . 6 5 2 5 12 5 4 Brawler 3 | . . 1 1 . 1 . . Duelist 2 | . . . . 1 . 1 . Sentry 15 | . . 2 2 4 2 3 2 Specialist 2 | . . . . . . 2 . Hunter 8 | . . . . 1 1 4 2 Programmer 18 | . . . . 1 4 7 6 Best Kill Streak 9 | . 2 4 6 8 8 9 3 Combat Bots Only 7 | . 2 4 6 4 7 7 3 Max Kills in Single Turn 4 | . 1 2 2 3 3 4 2 Gunslinging . | . . . . . . . . Exploded 3 | . . 2 . 3 2 2 . Melee . | . . . . . . . . Uniques/NPCs Destroyed . | . . . . . . . . Combat | -11 -10 -9 -8 -7 -6 -5 -4 -------- Run | Yrd Mat Mat Mat Fac Fac Fac Fac Hostile Shots Fired 1003 | . 40 39 32 185 136 268 303 Missed 323 | . 14 13 11 73 38 73 101 Hits 680 | . 26 26 21 112 98 195 202 Melee 4 | . . 2 2 . . . . Projectile 676 | . 26 24 19 112 98 195 202 AOE 1 | . . . . . . 1 . Critical Strikes 23 | . . 2 . 2 3 8 8 Part Disruptions 1 | . . . . . 1 . . Damage Taken 11602 | . 340 365 340 1027 1673 4122 3735 Core 2454 | . 179 76 22 80 129 813 1155 Absorbed by Shields 23 | . . . . . 23 . . Regen/Repaired (Parts) 174 | . . . . . . 174 . Core Remaining (%) 70 | 100 28 81 96 88 84 18 . Volleys Fired 309 | . 32 35 17 48 62 58 57 Largest 3 | . 2 3 3 3 3 3 3 Hottest 178 | . 105 100 84 95 132 135 178 Shots Fired 853 | . 63 92 51 144 184 162 157 Gun 518 | . 62 86 51 142 99 14 64 Cannon 311 | . . . . . 81 138 92 Launcher 18 | . . 1 . 2 4 10 1 Special 6 | . 1 5 . . . . . Kinetic 764 | . . 86 51 142 180 152 153 Thermal 68 | . 63 5 . . . . . Explosive 14 | . . 1 . . 2 10 1 Electromagnetic 7 | . . . . 2 2 . 3 Robot Hit Streak 30 | . 10 18 12 9 30 10 9 Robot Miss Streak 8 | . 4 4 4 7 8 4 4 Penetration Max 1 | . . . 1 1 1 1 1 Secondary Targets 5 | . 1 1 1 2 . . . Max Gunslinging Chain 1 | . 1 1 1 1 . . . Shots Hit Robots 519 | . 43 49 28 85 122 101 91 Core Hits 270 | . 17 23 14 48 61 66 41 Critical Kills 6 | . . 1 . 2 2 . 1 Critical Parts Destroyed 14 | . . 2 . 3 7 2 . Critical Strikes 34 | . 1 3 . 5 11 11 3 Burn 1 | . 1 . . . . . . Destroy 17 | . . 3 . 5 8 . 1 Blast 13 | . . . . . 2 9 2 Smash 3 | . . . . . 1 2 . Melee Attacks 17 | . . . . 1 3 13 . Impact 17 | . . . . 1 3 13 . Slashing . | . . . . . . . . Piercing . | . . . . . . . . Sneak Attacks 10 | . . . . . 2 8 . Combat Hostiles . | . . . . . . . . Follow-up Attacks . | . . . . . . . . Damage Inflicted 17141 | . 549 897 573 2138 3895 5054 4035 Guns 6274 | . 549 757 573 1895 1261 117 1122 Cannons 6451 | . . . . . 1686 2456 2309 Explosions 3175 | . . 140 . 243 804 1532 456 Melee 1062 | . . . . . 144 918 . Ramming 179 | . . . . . . 31 148 Kinetic 12084 | . . 757 573 1895 2947 2559 3353 Thermal 1047 | . 549 . . . 120 378 . Explosive 2106 | . . 140 . . 452 1058 456 Electromagnetic 649 | . . . . 243 232 96 78 Impact 1076 | . . . . . 144 932 . Slashing . | . . . . . . . . Piercing . | . . . . . . . . Highest Corruption 11 | . . . . . 2 11 11 Average Corruption 4 | . . . . . 2 3 6 Corruption Purged . | . . . . . . . . Corruption Blocked . | . . . . . . . . Effects 41 | . . . . . 4 16 21 Message Errors 10 | . . . . . 3 3 4 Matter Fused 7 | . . . . . . 3 4 Heat Flow Errors 7 | . . . . . . 3 4 Energy Discharges 4 | . . . . . . 2 2 Parts Rejected 3 | . . . . . . 1 2 Parts Fused 1 | . . . . . . 1 . Data Loss (minor) 1 | . . . . . . . 1 Data Loss (major) 1 | . . . . . . . 1 Misfires 1 | . . . . . 1 . . Alerts 1 | . . . . . . 1 . Misdirections 2 | . . . . . . 1 1 Weapon Failures 3 | . . . . . . 1 2 Overload Shots . | . . . . . . . . Overflow Damage 1165 | . . . . . 121 827 217 Projectiles 273 | . . . . . 37 54 182 Explosions 133 | . . . . . . 102 31 Melee 759 | . . . . . 84 671 4 Knockbacks 67 | . . . . . 20 26 21 Impact 4 | . . . . . 2 1 1 Kinetic 59 | . . . . . 17 23 19 Secondary 4 | . . . . . 1 2 1 Self-Inflicted Damage 321 | . . 23 . . 82 112 104 Shots 7 | . . 1 . . 1 4 1 Rammed 21 | . . . . . . 3 18 Targets Rammed 21 | . . . . . . 3 18 Kicked . | . . . . . . . . Crushed . | . . . . . . . . Highest Temperature 551 | . 375 36 280 240 358 551 236 Average Temperature 99 | . 96 9 106 72 75 169 39 Received Heat Transfer 2035 | . 189 153 135 363 468 351 376 Effects 23 | . 2 . 3 . 3 15 . Shutdowns 4 | . 1 . . . . 3 . Energy Bleed 3 | . 1 . . . . 2 . Interference 9 | . . . 3 . 2 4 . Matter Decay 1 | . . . . . 1 . . Damage (major) 4 | . . . . . . 4 . Damage (core) 2 | . . . . . . 2 . Siege Activations . | . . . . . . . . Martial Activations . | . . . . . . . . Shielding Activations . | . . . . . . . . Robots Disrupted . | . . . . . . . . Combat Hostiles . | . . . . . . . . Robots Corrupted 4 | . . . . . 2 2 . Combat Hostiles . | . . . . . . . . Parts Fried 26 | . . . . . 4 22 . Impact Corruptions 23 | . . . . . 4 18 1 Robots Melted . | . . . . . . . . Combat Hostiles . | . . . . . . . . Parts Melted . | . . . . . . . . Heat Transferred 1853 | . 1353 . . . 250 250 . Parts Sabotaged . | . . . . . . . . Parts Stolen . | . . . . . . . . Parts Stripped . | . . . . . . . . Power Chain Reactions 2 | . . . . . 2 . . Alert | -11 -10 -9 -8 -7 -6 -5 -4 ------- Run | Yrd Mat Mat Mat Fac Fac Fac Fac Maximum Alert Level 3 | . . . . . 1 3 1 Low Security (%) 80 | 100 100 100 100 100 58 61 94 Level 1 12 | . . . . . 41 8 5 Level 2 6 | . . . . . . 26 . Level 3 . | . . . . . . 3 . Level 4 . | . . . . . . . . Level 5 . | . . . . . . . . High Security . | . . . . . . . . Max Security . | . . . . . . . . Peak Influence 792 | . 68 124 162 100 326 792 357 Initial 357 | . . 18 25 70 . 149 357 Average 120 | . 37 57 36 29 141 239 121 Influence Increases 4081 | . 206 330 262 400 860 1447 576 Destroy 0b10 Robot/C 1960 | . 120 160 160 240 480 520 280 Destroy 0b10 Robot/NC 325 | . 10 50 10 75 45 85 50 Destroy Leader 518 | . 24 54 44 84 124 126 62 Successful Hack 124 | . 6 4 15 . 94 . 5 Disable Machine 465 | . 15 . 30 . 60 255 105 Destroy Structure 449 | . 1 17 3 1 57 296 74 Partial Spotted 30 | . 15 15 . . . . . Lose Combat Pursuer 210 | . 15 30 . . . 165 . Influence Decreases 4045 | . 160 315 169 554 554 1024 1269 Entered New Map 677 | . . 28 36 84 . 157 372 Time Decay 2071 | . 160 247 96 318 420 496 334 Lost Part 610 | . . 40 10 17 100 180 263 Purge Threat 687 | . . . 27 135 34 191 300 Squads Dispatched 35 | . . 2 . 7 8 12 6 Investigation 2 | . . . . 1 . 1 . Extermination 10 | . . . . 1 4 3 2 Reinforcement 17 | . . 2 . 2 4 5 4 Assault . | . . . . . . . . Garrison 6 | . . . . 3 . 3 . Intercept . | . . . . . . . . Searches Triggered . | . . . . . . . . Construction Impeded 4 | . . . . . 2 2 . Haulers Reinforced 5 | . . . . . 1 1 3 Active Scanning Responses . | . . . . . . . . Cargo Convoy Interrupts 1 | . . . . . . 1 . Stealth | -11 -10 -9 -8 -7 -6 -5 -4 --------- Run | Yrd Mat Mat Mat Fac Fac Fac Fac Distress Signals 8 | . 1 . . 1 1 4 1 Communications Jammed 4 | . . . . . . . 4 Distress Signals 4 | . . . . . . . 4 Times Spotted 169 | . 9 15 9 21 32 47 36 Peak Tracking Total 11 | . 3 4 5 6 7 8 11 Tactical Retreats 11 | . 1 1 . . 4 5 . ECM-based Alert Blocks 6 | . . . . . 6 . . Traps | -11 -10 -9 -8 -7 -6 -5 -4 ------- Run | Yrd Mat Mat Mat Fac Fac Fac Fac Traps Triggered 9 | . . 1 1 2 4 1 . Indirectly 1 | . . . . 1 . . . Trap Hack Attempts . | . . . . . . . . Triggered . | . . . . . . . . Disarmed . | . . . . . . . . Reprogrammed . | . . . . . . . . Reused . | . . . . . . . . Traps Extracted . | . . . . . . . . Installed . | . . . . . . . . Triggered . | . . . . . . . . Objects Rigged 4 | . . . . . 4 . . Exploded 1 | . . . . . 1 . . Machines | -11 -10 -9 -8 -7 -6 -5 -4 ---------- Run | Yrd Mat Mat Mat Fac Fac Fac Fac Machines Disabled 31 | . 1 . 2 . 4 17 7 Max in Single Turn 6 | . 1 . 1 . 2 6 1 Garrison Access 1 | . . . . 1 . . . Machines Repaired . | . . . . . . . . Machines Dismantled . | . . . . . . . . Machines Sabotaged . | . . . . . . . . Overloaded Fab Kills . | . . . . . . . . Hacking | -11 -10 -9 -8 -7 -6 -5 -4 --------- Run | Yrd Mat Mat Mat Fac Fac Fac Fac Machines Accessed 33 | . 2 3 5 7 7 7 2 Terminals 27 | . 2 2 5 5 5 6 2 Fabricators 1 | . . . . 1 . . . Repair Stations 1 | . . . . . . 1 . Recycling Units . | . . . . . . . . Scanalyzers 3 | . . 1 . . 2 . . Garrison Access 1 | . . . . 1 . . . Total Hacks 108 | . 6 8 15 17 28 26 8 Successful 48 | . 2 3 5 8 14 12 4 Failed 60 | . 4 5 10 9 14 14 4 Catastrophic 12 | . . 1 1 2 6 1 1 Database Lockouts . | . . . . . . . . Manual 80 | . 6 3 15 13 17 18 8 Terminals 89 | . 6 3 15 15 21 21 8 Fabricators 1 | . . . . 1 . . . Repair Stations 5 | . . . . . . 5 . Recycling Units . | . . . . . . . . Scanalyzers 12 | . . 5 . . 7 . . Garrison Access 1 | . . . . 1 . . . Terminal Hacks 22 | . 1 . 3 3 6 6 3 Part Schematic 3 | . . . . . 2 1 . Prototype ID Bank 1 | . . . . . 1 . . Terminal Index 6 | . 1 . 1 1 1 1 1 Unreport Threat 10 | . . . 2 2 2 2 2 Recall Extermination 2 | . . . . . . 2 . Fabricator Hacks 1 | . . . . 1 . . . Network Status 1 | . . . . 1 . . . Repair Station Hacks 3 | . . . . . . 3 . Scan Component 2 | . . . . . . 2 . Repair 1 | . . . . . . 1 . Recycling Unit Hacks . | . . . . . . . . Scanalyzer 8 | . . 3 . . 5 . . Insert Component 1 | . . . . . 1 . . Analyze 2 | . . . . . 2 . . Retrieve Study 5 | . . 3 . . 2 . . Garrison Access Hacks 1 | . . . . 1 . . . Seal Access 1 | . . . . 1 . . . Unauthorized Hacks 13 | . 1 . 2 3 3 3 1 Terminals 13 | . 1 . 2 3 3 3 1 Botnet 12 | . 1 . 2 3 2 3 1 Detonate 1 | . . . . . 1 . . Fabricators . | . . . . . . . . Repair Stations . | . . . . . . . . Recycling Units . | . . . . . . . . Scanalyzers . | . . . . . . . . Garrison Access . | . . . . . . . . Data Cores Recovered 1 | . . . . 1 . . . Used 1 | . . . . 1 . . . Hacking Detections 29 | . 2 3 5 4 7 6 2 Full Trace Events 3 | . . . 1 1 . 1 . Feedback Events . | . . . . . . . . Feedback Blocked . | . . . . . . . . Robot Schematics Acquired . | . . . . . . . . Robots Built . | . . . . . . . . Authchips . | . . . . . . . . Time . | . . . . . . . . Total Robot Build Rating . | . . . . . . . . Part Schematics Acquired 4 | . . . . . 3 1 . Parts Built . | . . . . . . . . Authchips . | . . . . . . . . Time . | . . . . . . . . Total Part Build Rating . | . . . . . . . . Part Studies Acquired 5 | . . 3 . . 2 . . Parts Repaired 1 | . . . . . . 1 . Time 35 | . . . . . . 35 . Parts Recycled . | . . . . . . . . Recycled Matter . | . . . . . . . . Retrieved Matter . | . . . . . . . . Retrieved Components . | . . . . . . . . Parts Scanalyzed 1 | . . . . . 1 . . Part Schematics Acquired 1 | . . . . . 1 . . Parts Damaged . | . . . . . . . . Bothacking | -11 -10 -9 -8 -7 -6 -5 -4 ------------ Run | Yrd Mat Mat Mat Fac Fac Fac Fac Used RIF Installer . | . . . . . . . . Robots Hacked . | . . . . . . . . Non-combat . | . . . . . . . . Combat . | . . . . . . . . Robot Hacks Applied . | . . . . . . . . Relay Couplers Released 3 | . . . . . 3 . . Programmers 3 | . . . . . 3 . . Fabnet Peak Effective % . | . . . . . . . . Robots Rewired . | . . . . . . . . Allies Hacked . | . . . . . . . . Hacks Repelled . | . . . . . . . . Allies | -11 -10 -9 -8 -7 -6 -5 -4 -------- Run | Yrd Mat Mat Mat Fac Fac Fac Fac Total Allies . | . . . . . . . . Largest Group . | . . . . . . . . Highest-Rated Group . | . . . . . . . . Highest-Rated Ally . | . . . . . . . . Total Orders . | . . . . . . . . Ally Attacks . | . . . . . . . . Total Damage . | . . . . . . . . Kills . | . . . . . . . . Allies Corrupted . | . . . . . . . . Allies Melted . | . . . . . . . . Intel | -11 -10 -9 -8 -7 -6 -5 -4 ------- Run | Yrd Mat Mat Mat Fac Fac Fac Fac Active Infowar (turns) 5849 | . 45 540 452 1126 1423 1514 749 Optics 915 | . . . . . . 683 232 Sensors 5087 | . 45 540 452 1126 1176 1026 722 Jamming 242 | . . . . . . . 242 ECM 2244 | . . . . 1126 1118 . . Robot Analysis Total . | . . . . . . . . Derelict Logs Recovered . | . . . . . . . . Drone Launches . | . . . . . . . . Drone Recoveries . | . . . . . . . . Exploration | -11 -10 -9 -8 -7 -6 -5 -4 ------------- Run | Yrd Mat Mat Mat Fac Fac Fac Fac Turns Passed 6282 | 39 375 542 452 1126 1471 1517 760 Spaces Moved 3731 | 28 254 267 281 693 897 855 456 Core 41 | 10 . 5 . . . 1 25 Treads 6 | . . 6 . . . . . Legs . | . . . . . . . . Wheels 3684 | 18 254 256 281 693 897 854 431 Hover . | . . . . . . . . Flight . | . . . . . . . . Fastest Speed 50 | 50 80 100 100 130 120 105 50 Average Speed 121 | 99 89 123 116 130 121 134 101 Slowest Speed 1050 | 200 110 950 130 130 130 1050 135 Overloaded Moves . | . . . . . . . . Propulsion Burnouts . | . . . . . . . . Robots Hopped . | . . . . . . . . Potential Cave-ins . | . . . . . . . . Cave-ins Triggered . | . . . . . . . . Exploration Rate (%) 22 | 4 42 16 29 23 27 28 14 Regions Visited 7 Branch Regions . Pre-discovered Areas . | . . . . . . . . Known Exits Taken 6 | . 1 1 1 1 1 1 . Unknown Exits Taken 1 | 1 . . . . . . . Scrap Searched . | . . . . . . . . Spaces Dug 9 | . . 5 . 1 . 3 . Terrain Destroyed 319 | . . 15 . 2 57 207 38 Melee 4 | . . . . 1 . 3 . Projectile 87 | . . 5 . 1 13 36 32 AOE 228 | . . 10 . . 44 168 6 Terrain Rammed . | . . . . . . . . Walls Destroyed . | . . . . . . . . Machines Disabled . | . . . . . . . . Actions | -11 -10 -9 -8 -7 -6 -5 -4 --------- Run | Yrd Mat Mat Mat Fac Fac Fac Fac Total 4776 | 35 333 399 377 808 1126 1072 626 Wait 360 | . 29 54 22 26 101 78 50 Move 3724 | 27 253 266 280 692 896 854 456 Hop . | . . . . . . . . Pick Up 76 | 2 8 13 19 10 11 7 6 Fast Attach 52 | 6 2 10 5 3 5 7 14 Attach 50 | . 1 4 3 3 12 15 12 Detach 22 | . 2 5 4 . 4 5 2 Swap 52 | . 5 4 3 7 12 16 5 Drop 62 | . 1 8 24 10 6 8 5 Fire 309 | . 32 35 17 48 62 58 57 Melee 17 | . . . . 1 3 13 . Ram 21 | . . . . . . 3 18 Kick . | . . . . . . . . Crush . | . . . . . . . . Escape Stasis 30 | . . . . 8 14 8 . Rewire 1 | . . . . . . . 1 Trap . | . . . . . . . . Miscellaneous . | . . . . . . . . Route ------- -11/Scrapyard -10/Materials (discovered 2 exits: *Mat x2) -9/Materials -8/Materials -7/Factory (discovered 3 exits: *Fac x2 / *Low) -6/Factory -5/Factory (discovered 2 exits: *Fac / *Upp) -4/Factory (discovered 2 exits: [*Res] / *Upp) History --------- Turn | Location | Event 22 | -11/Scrapyard | Discovered new exit (range 15) 40 | -11/Scrapyard | Entered Materials 210 | -10/Materials | Discovered new exit (range 15) 280 | -10/Materials | Discovered new exit (range 15) 301 | -10/Materials | Build established: Mutant 318 | -10/Materials | Core integrity fell below 50% 415 | -10/Materials | Identified exit to Materials 415 | -10/Materials | Entered another Materials area 415 | -9/Materials | Evolved 2 slots: Utility x1, Weapon x1 676 | -9/Materials | Discovered new exit (range 14) 729 | -9/Materials | Build established: Skirmisher 766 | -9/Materials | Lost 4 parts (1p2n1w) 955 | -9/Materials | Identified exit to Materials 957 | -9/Materials | Entered another Materials area 957 | -8/Materials | Evolved 2 slots: Utility x2 1397 | -8/Materials | Discovered new exit (range 5) 1404 | -8/Materials | Identified exit to Factory 1409 | -8/Materials | Entered Factory 1409 | -7/Factory | Evolved 2 slots: Utility x2 1551 | -7/Factory | Discovered new exit (range 15) 1615 | -7/Factory | Identified exit to Factory 1717 | -7/Factory | Build established: Tank 1733 | -7/Factory | Discovered new exit (range 7) 1748 | -7/Factory | Identified exit to Lower Caves 1781 | -7/Factory | Garrison activated, responded to threat 2461 | -7/Factory | Discovered exit to Factory (range 12) 2535 | -7/Factory | Entered another Factory area 2535 | -6/Factory | Evolved 2 slots: Utility x2 2835 | -6/Factory | Build established: Hacker-Tank 3170 | -6/Factory | Destroyed 7 combat bots 3194 | -6/Factory | Lost 5 parts (1p1n2u1w) 3988 | -6/Factory | Discovered new exit (range 9) 3996 | -6/Factory | Identified exit to Factory 4006 | -6/Factory | Entered another Factory area 4006 | -5/Factory | Evolved 2 slots: Utility x2 4340 | -5/Factory | Build established: Hacker-Skirmisher 4515 | -5/Factory | Garrison activated, responded to threat 4896 | -5/Factory | Discovered new exit (range 9) 4913 | -5/Factory | Identified exit to Upper Caves 5098 | -5/Factory | Destroyed 7 combat bots 5106 | -5/Factory | Lost 3 parts (1u2w) 5118 | -5/Factory | Repaired Broken Magnetic Acceleration Cannon+? 5192 | -5/Factory | Spotted B-75 Beast 5226 | -5/Factory | Discovered new exit (range 8) 5359 | -5/Factory | Identified exit to Factory 5375 | -5/Factory | Cargo convoy interrupted 5467 | -5/Factory | System corruption reached 10% 5470 | -5/Factory | Core integrity fell below 50% 5504 | -5/Factory | Destroyed 7 combat bots 5512 | -5/Factory | Core integrity fell below 20% 5523 | -5/Factory | Entered another Factory area 5523 | -4/Factory | Evolved 2 slots: Power x1, Propulsion x1 5547 | -4/Factory | Lost 11 parts (2p1n4u4w) 6001 | -4/Factory | Lost 4 parts (1p1n1u1w) 6061 | -4/Factory | Discovered new exit (range 11) 6077 | -4/Factory | Identified exit to Upper Caves 6211 | -4/Factory | System corruption reached 10% 6269 | -4/Factory | Core integrity fell below 50% 6272 | -4/Factory | Released all parts (4) 6276 | -4/Factory | Discovered new exit (range 15) 6278 | -4/Factory | Core integrity fell below 20% 6283 | -4/Factory | Destroyed by G-67 Veteran with Plasma Rifle Last Messages --------------- 06275_ Slug penetrates Wall. 06275_ Slug penetrates H-77 Assassin. 06276_ System corrupted: Substantial component data lost. 06276_ EXIT=FOUND 06276_ K-01 Serf collects debris. 06276_ Penetrated by Slug. 06276_ Slug penetrates Wall. 06278_ K-01 Serf destroyed. 06278_ Acquired 14 matter. 06278_ K-01 Serf collects debris. 06278_ Penetrated by Slug. 06278_ Slug penetrates Wall. 06278_ Slug penetrates G-67 Veteran. 06278_ G-67 Veteran suffers critical hit (Destroy). 06279_ Critical hit (Burn: +50). 06280_ K-01 Serf destroyed. 06281_ Slug penetrates G-67 Veteran. 06281_ K-01 Serf collects debris. Map ----- +----------------------------------------------------+ | ?????????????????????????????????????????????????? | | ?????????????????????????????????????????????????? | | ?????????????????????????????????????????????????? | | ?????????????????????????????????????????????????? | | ?????????????????????????????????????????????????? | | ?????????????????????????????????????????????????? | | ?????????????????????????????????????????????????? | | ?????????????????????????????????????????????????? | | ?????????????????????????????????????????????????? | | ?????????????????????????????????????????????????? | | ?????????????????????????????????????????????????? | | ?????????????????????????????????????????????????? | | ?????????????????????????????????????????????????? | | ?????????????????????????????????????????????????? | | ?????????????????????????????????????????????????? | | ?????????????????????????????????????????????????? | | ?????????????????????????????????????????????????? | | ?????????????????????????????????????????????????? | | ?????????????????????????????????????????????????? | | ???????????????????#########?????????????????????? | | ???????????????????# #?????????????????????? | | ???????????######### #?????????????????????? | | ??????????? #?????????????????? | | ?????????? ! < #????????????????? | | ????????????? Y #?????????????????# | | ???????????????????# @ #?????????????????# | | ???????????????????# #?????????????????# | | ???????????????????### ###?????????????????# | | ?????????????????????# #??###########??????# | | ?????????????????????#g #?? ??????# | | ?????????????????????# =#? [ ?????# | | ?????????????????????# %#? ?????# | | ?????????????????????# !# ????# | | ?????????????????????# h # ????# | | ?????????????????????# g / ????# | | ????????????????????##k # ????# | | ????????????????????# ##################### | | ????????????????????#T "" | | ????????????????????## % | | ?????????????????????# %! !%= | | ?????????????????????# %% % * | | ?????????????????????# % *%!* | | ?????????????????????## """"""!=% ![% | | ??????????????????????# """"" | ###/######### | | ??????????????????????# """"""=! # | | ??????????????????????# """"""=%* # | | ?????????????????????? ! # | | ????????????????????? """" # """ """ """ | | ????????????????????? """" # """ """ """ | | ????????????????????? """ ## """ """ """ | +----------------------------------------------------+ Best States ------------- Heat Dissipation 62 Energy Generation 24 Energy Capacity 340 Matter Stores 363 Matter Capacity 450 Sight Range 22 Robot Scan Range 15 Terrain Scan Density 10 ECM Strength 1 Jamming Range 16 Armor Coverage 600 Weapon Cycling 20 Evasion (%) 49 Targeting Accuracy 8 Recoil Reduction 2 Matter Filtering 30 Offensive Hacking 20 Defensive Hacking 20 Item Schematics ----------------- Hcp. Storage Unit | -6/Factory | Hacked Hacking Suite | -6/Factory | Scanalyzed Tractor Beam | -6/Factory | Hacked Adv. Hacking Suite | -5/Factory | Hacked Robot Schematics ------------------ None Fabricated ------------ Nothing Repaired ---------- Magnetic Acceleration Cannon | 3% | -5/Factory | Broken Studied --------- Wheel | -9/Materials | Hacked Com. Wheel | -9/Materials | Hacked Hvy. Assault Rifle | -9/Materials | Hacked Arm. Huge Wheel | -6/Factory | Hacked Magnetic Acceleration Cannon | -6/Factory | Hacked Alien Tech Used ----------------- None Achievements -------------- None Challenges ------------ None Game ------ Seed MissileReactiveHammer Manual? 0 Play Time 01:31:44 Cumulative 39.5 hours Start 2026.01.27 @ 23:46:48 End 2026.01.28 @ 01:17:28 Sessions 1 Manual Loads 0 Difficulty Rogue Special Mode None Game No. 47 Rogue 47 Adventurer 0 Explorer 0 Win Type - Total 0 Types 0/0/0/0/0/0/0/0/0/0 Lore% 32 Gallery% 34 Achievement% 28 Wizard Run 0 Options --------- Layout 1 ASCII 0 Keyboard 1 Movement Numpad Keybinds 0 Fullscreen 1 Font 48/Smallcaps Map View 50x35 Zoom Use 0% Tactical HUD 1 Map Filters NONE Filters NONE Steam 1 RUN: 6545b8c7-7174-4022-836c-ffec5cf24176